bitfinex/quotes_BTCUSD_20240602
["timestamp","ask_amount","ask_price","bid_price","bid_amount"]
[1717321065704,0.16067411,67594.0,67593.0,0.033]
[1717321065888,0.16267411,67594.0,67593.0,0.049]
[1717321066836,0.16267411,67594.0,67593.0,0.039]
[1717321066837,0.16067411,67594.0,67593.0,0.039]
[1717321067016,0.16067411,67594.0,67593.0,0.03]
[1717321067017,0.15967411,67594.0,67593.0,0.03]
[1717321067222,0.16067411,67594.0,67593.0,0.038]
[1717321067428,0.16067411,67594.0,67593.0,0.031]
[1717321067429,0.16467411,67594.0,67593.0,0.031]
[1717321067650,0.16467411,67594.0,67593.0,0.008]
[1717321067865,0.26567411,67594.0,67593.0,0.008]
[1717321068343,0.7039081,67594.0,67593.0,0.008]
[1717321068571,0.67220015,67594.0,67593.0,0.008]
[1717321068773,1.01808415,67594.0,67593.0,0.008]
[1717321069194,0.72220015,67594.0,67593.0,0.008]
[1717321069412,0.72220015,67594.0,67586.0,0.0821]
[1717321069413,0.152957,67587.0,67586.0,0.0821]
[1717321069621,0.252957,67587.0,67586.0,0.0821]
[1717321069838,0.252957,67587.0,67583.0,0.1662]
[1717321069839,0.147964,67584.0,67583.0,0.1662]
[1717321070503,0.147964,67584.0,67582.0,0.19]
[1717321070504,0.147966,67583.0,67582.0,0.19]
[1717321070741,0.01055078,67584.0,67573.0,0.19]
[1717321070941,0.147992,67572.0,67567.0,0.2721]
[1717321071165,0.51698676,67583.0,67569.0,0.1662]
[1717321071166,0.147992,67571.0,67569.0,0.1662]
[1717321071342,0.147992,67571.0,67570.0,0.05]
[1717321071594,0.005,67578.0,67570.0,0.05]
[1717321072032,0.147989,67573.0,67570.0,0.05]
[1717321072216,0.147989,67573.0,67569.0,0.31197791]
[1717321072217,0.14799,67572.0,67571.0,0.0821]
[1717321072419,0.14799,67572.0,67571.0,0.1051]
[1717321073576,0.14999,67572.0,67571.0,0.1311]
[1717321073786,0.15299,67572.0,67571.0,0.1591]
[1717321074011,0.15299,67572.0,67571.0,0.1311]
[1717321074210,0.15099,67572.0,67571.0,0.1051]
[1717321074416,0.15299,67572.0,67571.0,0.1221]
[1717321074792,0.15299,67572.0,67571.0,0.04]
[1717321075015,0.15799,67572.0,67571.0,0.04]
[1717321075635,0.15899,67572.0,67571.0,0.056]
[1717321077488,0.15899,67572.0,67571.0,0.033]
[1717321077700,0.25899,67572.0,67571.0,0.033]
[1717321078326,0.55497,67572.0,67571.0,0.033]
[1717321078530,0.60497,67572.0,67571.0,0.033]
[1717321079361,0.60497,67572.0,67571.0,0.017]
[1717321079362,0.60397,67572.0,67571.0,0.017]
[1717321079514,0.62097,67572.0,67571.0,0.018]
[1717321079720,0.61597,67572.0,67571.0,0.001]
[1717321079920,0.56597,67572.0,67571.0,0.001]
[1717321080127,0.41798,67572.0,67571.0,0.002]
[1717321080326,0.148003,67566.0,67565.0,0.02831985]
[1717321080726,0.153003,67566.0,67565.0,0.02831985]
[1717321080942,0.148003,67566.0,67565.0,0.02831985]
[1717321081928,0.153003,67566.0,67565.0,0.02831985]
[1717321082538,0.153003,67566.0,67565.0,0.03124428]
[1717321082539,0.835109,67566.0,67565.0,0.03124428]
[1717321082963,0.785109,67566.0,67565.0,0.03124428]
[1717321083165,0.785109,67566.0,67565.0,0.02824428]
[1717321083309,0.788109,67566.0,67565.0,0.02824428]
[1717321083550,0.790109,67566.0,67565.0,0.03124428]
[1717321083751,0.787109,67566.0,67565.0,0.03124428]
[1717321083953,0.785109,67566.0,67565.0,0.02824428]
[1717321084211,0.805109,67566.0,67565.0,0.03024428]
[1717321084349,0.819109,67566.0,67565.0,0.03024428]
[1717321084752,0.88913383,67566.0,67565.0,0.03024428]
[1717321086425,0.89938799,67566.0,67565.0,0.03024428]
[1717321086633,0.94938799,67566.0,67565.0,0.03024428]
[1717321086838,0.005,67559.0,67557.0,0.00857]
[1717321087040,1.090202,67558.0,67557.0,0.00857]
[1717321087303,1.090202,67558.0,67555.0,0.0196]
[1717321087304,0.105,67556.0,67555.0,0.0196]
[1717321087504,0.105,67556.0,67544.0,0.00875]
[1717321087505,0.398149,67545.0,67544.0,0.00795]
[1717321087717,0.448149,67545.0,67544.0,0.00795]
[1717321087934,1.10036344,67545.0,67544.0,0.00795]
[1717321088141,1.15036344,67545.0,67544.0,0.00795]
[1717321088348,1.29614135,67545.0,67544.0,0.00795]
[1717321088560,0.32809227,67545.0,67544.0,0.00795]
[1717321088776,0.25806744,67545.0,67544.0,0.00795]
[1717321089591,0.11001844,67545.0,67544.0,0.23222791]
[1717321089796,0.01001844,67545.0,67544.0,0.23222791]
[1717321090010,0.01001844,67545.0,67544.0,0.50720791]
[1717321090222,0.013,67545.0,67544.0,0.91360791]
[1717321090431,0.013,67545.0,67544.0,1.06165891]
[1717321090646,0.049,67545.0,67544.0,1.21527771]
[1717321090848,0.019368,67551.0,67544.0,1.21527771]
[1717321090849,0.019368,67551.0,67550.0,0.39]
[1717321091106,0.019368,67551.0,67550.0,1.09465791]
[1717321091324,0.147979,67577.0,67568.0,0.19]
[1717321091529,0.147979,67577.0,67576.0,0.05]
[1717321091738,0.01004792,67576.0,67569.0,0.38747791]
[1717321091952,0.005,67586.0,67570.0,0.023]
[1717321092161,0.147968,67582.0,67571.0,0.14577791]
[1717321092381,0.147968,67582.0,67572.0,0.023]
[1717321092587,0.01004792,67585.0,67573.0,0.14577791]
[1717321092794,0.147962,67585.0,67574.0,0.023]
[1717321092998,0.147962,67585.0,67575.0,0.14577791]
[1717321093197,0.01004792,67584.0,67576.0,0.023]
[1717321093399,0.15801192,67584.0,67576.0,0.023]
[1717321093623,0.023,67582.0,67576.0,0.023]
[1717321093980,0.147973,67580.0,67576.0,0.023]
[1717321094267,0.17288895,67579.0,67575.0,0.001]
[1717321094469,0.147981,67576.0,67575.0,0.001]
[1717321094673,0.147981,67576.0,67570.0,0.023]
[1717321094674,0.247981,67576.0,67570.0,0.023]
[1717321094892,0.247981,67576.0,67564.0,0.1632]
[1717321094893,0.1,67575.0,67571.0,0.14577791]
[1717321095063,0.1,67575.0,67572.0,0.023]
[1717321095273,0.1,67575.0,67572.0,0.16877791]
[1717321095479,0.1,67575.0,67572.0,0.023]
[1717321095674,0.01013595,67574.0,67567.0,0.023]
[1717321095990,0.01013595,67574.0,67568.0,0.14577791]
[1717321096286,0.01013595,67574.0,67569.0,0.023]
[1717321096480,0.01013595,67574.0,67570.0,0.14577791]
[1717321096683,0.001,67579.0,67570.0,0.14577791]
[1717321096684,0.001,67579.0,67571.0,0.023]
[1717321096834,0.1,67580.0,67572.0,0.14577791]
[1717321097039,0.1,67580.0,67572.0,0.15025356]
[1717321097040,0.002,67574.0,67572.0,0.15025356]
[1717321097242,0.002,67574.0,67573.0,0.023]
[1717321097445,0.002,67575.0,67573.0,0.17469682]
[1717321097654,0.002,67575.0,67574.0,0.14577791]
[1717321097830,0.002,67575.0,67574.0,0.16877791]
[1717321098037,0.1,67580.0,67575.0,0.2417]
[1717321098406,0.1,67585.0,67578.0,0.19]
[1717321098645,0.0786,67594.0,67579.0,0.29397791]
[1717321098646,0.147952,67590.0,67579.0,0.29397791]
[1717321098998,0.1,67589.0,67579.0,0.29397791]
[1717321099199,0.247953,67589.0,67579.0,0.29397791]
[1717321099400,0.247953,67589.0,67580.0,0.1632]
[1717321099632,0.247953,67589.0,67581.0,0.16877791]
[1717321099831,0.005,67605.0,67581.0,0.16877791]
[1717321100032,0.003,67590.0,67581.0,0.16877791]
[1717321100653,0.147946,67593.0,67581.0,0.16877791]
[1717321100879,0.147946,67593.0,67581.0,0.20577791]
[1717321100880,0.003,67589.0,67581.0,0.20577791]
[1717321101110,0.003,67589.0,67581.0,0.30577791]
[1717321101314,0.003,67589.0,67581.0,0.23977791]
[1717321101315,0.01026376,67588.0,67581.0,0.23977791]
[1717321101527,0.01026376,67588.0,67581.0,0.20577791]
[1717321101934,0.01026376,67588.0,67581.0,0.23877791]
[1717321102156,0.01026376,67588.0,67581.0,0.20177791]
[1717321102555,0.247947,67592.0,67581.0,0.23477791]
[1717321102722,0.01026376,67587.0,67581.0,0.23477791]
[1717321102925,0.247947,67592.0,67581.0,0.20177791]
[1717321103131,0.01026376,67586.0,67581.0,0.16877791]
[1717321103305,0.247947,67592.0,67581.0,0.20177791]
[1717321103506,0.01026376,67585.0,67581.0,0.23577791]
[1717321103707,0.003,67588.0,67581.0,0.20277791]
[1717321103938,0.01026376,67584.0,67581.0,0.16877791]
[1717321104116,0.250947,67592.0,67581.0,0.23577791]
[1717321104441,0.01026376,67583.0,67581.0,0.20177791]
[1717321104611,0.250947,67592.0,67581.0,0.20177791]
[1717321104811,0.003,67585.0,67581.0,0.23777791]
[1717321105013,0.003,67585.0,67581.0,0.20177791]
[1717321105426,0.003,67585.0,67581.0,0.16877791]
[1717321105626,0.003,67585.0,67581.0,0.20577791]
[1717321106322,0.003,67585.0,67581.0,0.16877791]
[1717321106566,0.003,67585.0,67581.0,0.20277791]
[1717321106755,0.004,67585.0,67581.0,0.23977791]
[1717321107087,0.001,67585.0,67581.0,0.20577791]
[1717321107194,0.004,67585.0,67581.0,0.23977791]
[1717321112047,0.004,67585.0,67581.0,0.20277791]
[1717321112274,0.003,67585.0,67581.0,0.20277791]
[1717321112474,0.004,67585.0,67581.0,0.23777791]
[1717321113095,0.01033555,67584.0,67581.0,0.20277791]
[1717321113299,0.004,67585.0,67581.0,0.23977791]
[1717321113501,0.004,67585.0,67581.0,0.20577791]
[1717321113502,0.147964,67584.0,67581.0,0.20577791]
[1717321113762,0.1582962,67584.0,67581.0,0.20577791]
[1717321113936,0.1582962,67584.0,67581.0,0.23977791]
[1717321114092,0.1582962,67584.0,67581.0,0.20577791]
[1717321114491,0.1582962,67584.0,67581.0,0.20077791]
[1717321114953,0.1582962,67584.0,67581.0,0.23577791]
[1717321115153,0.1582962,67584.0,67581.0,0.20377791]
[1717321115357,0.1582962,67584.0,67581.0,0.16877791]
[1717321115821,0.1612962,67584.0,67581.0,0.20077791]
[1717321115953,0.1622962,67584.0,67581.0,0.23277791]
[1717321117789,0.1622962,67584.0,67581.0,0.087]
[1717321118117,0.147966,67583.0,67581.0,0.087]
[1717321118325,0.384668,67582.0,67581.0,0.064]
[1717321118506,0.484668,67582.0,67581.0,0.064]
[1717321118708,0.40000025,67582.0,67581.0,0.064]
[1717321118944,0.50000025,67582.0,67581.0,0.032]
[1717321119146,0.50000025,67582.0,67581.0,0.064]
[1717321119967,0.50000025,67582.0,67581.0,0.032]
[1717321120218,0.54150071,67582.0,67581.0,0.032]
[1717321120607,0.83743671,67582.0,67581.0,0.032]
[1717321121048,0.83743671,67582.0,67581.0,0.064]
[1717321121302,0.14799,67572.0,67571.0,0.4691]
[1717321121501,0.75070481,67582.0,67564.0,0.19]
[1717321121502,0.147995,67570.0,67564.0,0.19]
[1717321121723,0.147995,67570.0,67565.0,0.16877791]
[1717321123281,0.148995,67570.0,67565.0,0.18777791]
[1717321123488,0.147997,67569.0,67565.0,0.18777791]
[1717321123919,0.147997,67569.0,67565.0,0.20577791]
[1717321124321,0.005,67569.0,67565.0,0.20577791]
[1717321124544,0.005,67569.0,67565.0,0.18677791]
[1717321124768,0.005,67569.0,67565.0,0.16877791]
[1717321125036,0.153003,67566.0,67565.0,0.042]
[1717321125268,0.148003,67566.0,67565.0,0.06]
[1717321125475,0.26151153,67566.0,67565.0,0.037]
[1717321125648,0.26151153,67566.0,67565.0,0.06]
[1717321125911,0.26151153,67566.0,67565.0,0.041]
[1717321126308,0.26151153,67566.0,67565.0,0.06]
[1717321126309,0.26251153,67566.0,67565.0,0.06]
[1717321126534,0.26251153,67566.0,67565.0,0.042]
[1717321127006,0.26251153,67566.0,67565.0,0.06]
[1717321127007,0.26451153,67566.0,67565.0,0.06]
[1717321127886,0.26451153,67566.0,67565.0,0.037]
[1717321130574,0.56051753,67566.0,67565.0,0.037]
[1717321132743,0.71561753,67566.0,67565.0,0.037]
[1717321132947,1.11131171,67566.0,67565.0,0.037]
[1717321133742,1.11131171,67566.0,67545.0,0.4691]
[1717321133743,0.148025,67556.0,67545.0,0.4691]
[1717321133951,0.253025,67556.0,67545.0,0.4691]
[1717321134124,0.49779194,67556.0,67545.0,0.4691]
[1717321134941,0.50779194,67556.0,67555.0,0.00106464]
[1717321135340,0.51179194,67556.0,67555.0,0.00106464]
[1717321135768,0.52179194,67556.0,67555.0,0.00206464]
[1717321136323,0.50779194,67556.0,67555.0,0.00106464]
[1717321136606,0.80384194,67556.0,67555.0,0.00106464]
[1717321137707,0.80384194,67556.0,67555.0,0.00206464]
[1717321137708,0.81684194,67556.0,67555.0,0.00206464]
[1717321137929,0.81684194,67556.0,67555.0,0.00106464]
[1717321138114,0.80384194,67556.0,67555.0,0.00106464]
[1717321138362,0.80384194,67556.0,67555.0,0.00206464]
[1717321138363,1.11289194,67556.0,67555.0,0.00206464]
[1717321138757,0.81684194,67556.0,67555.0,0.00206464]
[1717321140481,0.83537632,67556.0,67555.0,0.00206464]
[1717321140893,0.29802632,67556.0,67555.0,0.00206464]
[1717321141099,0.27949194,67556.0,67555.0,0.00206464]
[1717321141660,0.27949194,67556.0,67555.0,0.22584255]
[1717321141863,0.023,67556.0,67555.0,0.24884255]
[1717321142668,0.03131897,67556.0,67555.0,0.24884255]
[1717321143957,0.023,67556.0,67555.0,0.24884255]
[1717321144239,0.013,67556.0,67555.0,0.24784255]
[1717321144486,0.148023,67557.0,67555.0,0.24684255]
[1717321144685,0.25734423,67556.0,67555.0,0.12006464]
[1717321144902,0.25934423,67556.0,67555.0,0.03806464]
[1717321145120,0.26334423,67556.0,67555.0,6.464e-05]
[1717321145550,0.26534423,67556.0,67555.0,0.01906464]
[1717321145758,0.26134423,67556.0,67555.0,6.464e-05]
[1717321146186,0.26134423,67556.0,67555.0,0.01906464]
[1717321146187,0.25834423,67556.0,67555.0,0.01906464]
[1717321146365,0.26334423,67556.0,67555.0,0.01906464]
[1717321146638,0.26134423,67556.0,67555.0,6.464e-05]
[1717321147103,0.25634423,67556.0,67555.0,6.464e-05]
[1717321147540,0.10931923,67556.0,67555.0,0.16484255]
[1717321147754,0.00931923,67556.0,67555.0,0.18784255]
[1717321147972,0.148008,67564.0,67555.0,0.59504255]
[1717321148179,0.001,67556.0,67555.0,0.45326464]
[1717321148387,0.1,67563.0,67555.0,0.45126464]
[1717321148599,0.1,67563.0,67556.0,0.023]
[1717321148817,0.00836484,67562.0,67556.0,0.023]
[1717321149025,0.1,67563.0,67562.0,0.19]
[1717321149238,0.001,67564.0,67562.0,0.213]
[1717321149442,0.001,67564.0,67563.0,0.023]
[1717321149857,0.00936488,67564.0,67563.0,0.023]
[1717321150070,0.001,67564.0,67563.0,0.023]
[1717321150283,0.00936488,67564.0,67563.0,0.023]
[1717321150456,0.1,67567.0,67563.0,0.023]
[1717321150742,0.00836488,67564.0,67563.0,0.023]
[1717321150953,0.1,67567.0,67563.0,0.023]
[1717321151165,0.2386,67575.0,67563.0,0.023]
[1717321151166,0.00836361,67564.0,67563.0,0.023]
[1717321151382,0.148003,67566.0,67563.0,0.023]
[1717321151383,0.1,67565.0,67563.0,0.023]
[1717321151586,0.00936361,67564.0,67563.0,0.038]
[1717321151852,0.00936361,67564.0,67563.0,0.05]
[1717321152053,0.00836361,67564.0,67563.0,0.023]
[1717321152254,0.00836361,67564.0,67563.0,0.16877791]
[1717321152383,0.00836361,67564.0,67563.0,0.17177791]
[1717321152595,0.00836361,67564.0,67563.0,0.17077791]
[1717321152778,0.1,67568.0,67563.0,0.17077791]
[1717321152979,0.00936361,67564.0,67563.0,0.18277791]
[1717321153191,0.001,67564.0,67563.0,0.18277791]
[1717321153390,0.00936361,67564.0,67563.0,0.18277791]
[1717321153594,0.001,67564.0,67563.0,0.18077791]
[1717321153791,0.00936361,67564.0,67563.0,0.18977791]
[1717321153999,0.001,67564.0,67563.0,0.18977791]
[1717321154197,0.00936361,67564.0,67563.0,0.18977791]
[1717321154392,0.247999,67568.0,67563.0,0.16877791]
[1717321154597,0.247999,67568.0,67564.0,0.14577791]
[1717321154794,0.247999,67568.0,67565.0,0.023]
[1717321155414,0.248999,67568.0,67565.0,0.023]
[1717321156064,0.250999,67568.0,67565.0,0.023]
[1717321156301,0.248999,67568.0,67565.0,0.023]
[1717321157418,0.247999,67568.0,67565.0,0.023]
[1717321157808,0.249999,67568.0,67565.0,0.043]
[1717321158330,0.248999,67568.0,67565.0,0.031]
[1717321158527,0.248999,67568.0,67565.0,0.038]
[1717321158528,0.386603,67566.0,67565.0,0.038]
[1717321158756,0.391603,67566.0,67565.0,0.038]
[1717321158972,0.491603,67566.0,67565.0,0.038]
[1717321159157,0.486603,67566.0,67565.0,0.042]
[1717321159299,0.409603,67566.0,67565.0,0.032]
[1717321159706,0.409603,67566.0,67565.0,0.036]
[1717321160132,0.42797733,67566.0,67565.0,0.036]
[1717321160485,0.43297733,67566.0,67565.0,0.004]
[1717321160885,0.43297733,67566.0,67565.0,0.002]
[1717321161096,0.44138236,67566.0,67565.0,0.002]
[1717321161305,0.44238236,67566.0,67565.0,0.004]
[1717321161509,0.148007,67564.0,67563.0,6.115e-05]
[1717321161721,0.27138133,67564.0,67563.0,6.115e-05]
[1717321161924,0.27978632,67564.0,67563.0,6.115e-05]
[1717321162351,0.27478632,67564.0,67563.0,6.115e-05]
[1717321163070,0.26141199,67564.0,67563.0,6.115e-05]
[1717321163416,0.25641199,67564.0,67563.0,6.115e-05]
[1717321163834,0.25641199,67564.0,67563.0,0.00206115]
[1717321164037,0.26141199,67564.0,67563.0,0.00206115]
[1717321164216,0.25641199,67564.0,67563.0,0.00306115]
[1717321164421,0.26141199,67564.0,67563.0,0.00306115]
[1717321164833,0.279746,67564.0,67563.0,0.00306115]
[1717321164995,0.279746,67564.0,67563.0,6.115e-05]
[1717321165195,0.279746,67564.0,67563.0,0.00206115]
[1717321165407,0.274746,67564.0,67563.0,0.00306115]
[1717321165601,0.274746,67564.0,67563.0,0.00206115]
[1717321165897,0.25641199,67564.0,67563.0,0.00206115]
[1717321166137,0.26741199,67564.0,67563.0,0.00306115]
[1717321166342,0.28576517,67564.0,67563.0,0.00306115]
[1717321167417,0.27976517,67564.0,67563.0,6.115e-05]
[1717321167626,0.27976517,67564.0,67563.0,0.00106115]
[1717321167627,0.28976517,67564.0,67563.0,0.00106115]
[1717321167847,0.29376517,67564.0,67563.0,0.00106115]
[1717321168247,0.28976517,67564.0,67563.0,0.00106115]
[1717321168694,0.29676517,67564.0,67563.0,0.00106115]
[1717321168924,0.28676517,67564.0,67563.0,6.115e-05]
[1717321169147,0.28176517,67564.0,67563.0,6.115e-05]
[1717321169380,0.29276517,67564.0,67563.0,0.00106115]
[1717321169815,0.58378017,67564.0,67563.0,0.00106115]
[1717321170030,0.29276517,67564.0,67563.0,0.00106115]
[1717321170247,0.35097525,67564.0,67563.0,0.00106115]
[1717321170717,0.35097525,67564.0,67563.0,6.115e-05]
[1717321170718,0.33797525,67564.0,67563.0,6.115e-05]
[1717321170942,0.35497525,67564.0,67563.0,0.00206115]
[1717321171359,0.36597525,67564.0,67563.0,0.00106115]
[1717321171582,0.38597525,67564.0,67563.0,0.00306115]
[1717321171801,0.37497525,67564.0,67563.0,0.00206115]
[1717321172017,0.39097525,67564.0,67563.0,0.00306115]
[1717321172660,0.39105318,67564.0,67563.0,0.00306115]
[1717321172876,0.33276517,67564.0,67563.0,0.00306115]
[1717321173517,0.39053269,67564.0,67563.0,0.00306115]
[1717321175182,0.33276517,67564.0,67563.0,0.00306115]
[1717321175383,0.39062497,67564.0,67563.0,0.00306115]
[1717321183948,0.68663997,67564.0,67563.0,0.00306115]
[1717321187130,0.68163997,67564.0,67563.0,0.00306115]
[1717321187366,0.38844355,67564.0,67563.0,0.00306115]
[1717321187606,0.38844355,67564.0,67563.0,0.15566115]
[1717321188536,0.32776517,67564.0,67563.0,0.15566115]
[1717321189009,0.38834186,67564.0,67563.0,0.15566115]
[1717321190503,0.38834186,67564.0,67563.0,0.00306115]
[1717321190701,0.32776517,67564.0,67563.0,0.00306115]
[1717321191482,0.32787012,67564.0,67563.0,0.00306115]
[1717321192556,0.38786818,67564.0,67563.0,0.00306115]
[1717321193407,0.32792939,67564.0,67563.0,0.00306115]
[1717321193834,0.3279317,67564.0,67563.0,0.00306115]
[1717321194042,0.38868794,67564.0,67563.0,0.00306115]
[1717321194245,0.47358794,67564.0,67563.0,0.00306115]
[1717321194804,0.47153737,67564.0,67563.0,0.00306115]
[1717321195021,0.39163737,67564.0,67563.0,0.00306115]
[1717321200567,0.54833737,67564.0,67563.0,0.00306115]
[1717321201227,0.84435237,67564.0,67563.0,0.00306115]
[1717321201658,0.148027,67555.0,67554.0,0.07946115]
[1717321201816,0.27154671,67555.0,67554.0,0.10246115]
[1717321202169,0.274922,67555.0,67554.0,0.10246115]
[1717321202374,0.005,67554.0,67548.0,0.1526]
[1717321202598,0.148034,67552.0,67551.0,0.61487791]
[1717321202770,0.148034,67552.0,67551.0,0.4921]
[1717321202771,0.17155371,67552.0,67551.0,0.4921]
[1717321202974,0.28083898,67552.0,67551.0,0.4921]
[1717321204161,0.28183898,67552.0,67551.0,0.5141]
[1717321204379,0.28160836,67552.0,67551.0,0.5141]
[1717321205012,0.28360836,67552.0,67551.0,0.5361]
[1717321205239,0.28160836,67552.0,67551.0,0.4911]
[1717321205594,0.28260836,67552.0,67551.0,0.5021]
[1717321206020,0.28160836,67552.0,67551.0,0.4801]
[1717321206429,0.28260836,67552.0,67551.0,0.4921]
[1717321206684,0.28260836,67552.0,67551.0,0.023]
[1717321208482,0.34084673,67552.0,67551.0,0.023]
[1717321208689,0.28260836,67552.0,67551.0,0.023]
[1717321208890,0.33886275,67552.0,67551.0,0.023]
[1717321209320,0.28260836,67552.0,67551.0,0.023]
[1717321213545,0.57867636,67552.0,67551.0,0.023]
[1717321213758,0.85737636,67552.0,67551.0,0.023]
[1717321213918,0.91363634,67552.0,67551.0,0.023]
[1717321214925,0.91263634,67552.0,67551.0,0.012]
[1717321215329,0.92963634,67552.0,67551.0,0.014]
[1717321215542,0.92863634,67552.0,67551.0,0.002]
[1717321215782,0.94263634,67552.0,67551.0,0.003]
[1717321215987,0.89253634,67552.0,67551.0,0.003]
[1717321218104,0.89220058,67552.0,67551.0,0.003]
[1717321219291,0.83627636,67552.0,67551.0,0.003]
[1717321219521,0.89093891,67552.0,67551.0,0.003]
[1717321219953,0.83627636,67552.0,67551.0,0.003]
[1717321224229,0.88795445,67552.0,67551.0,0.003]
[1717321224843,0.91976536,67552.0,67551.0,0.003]
[1717321225017,0.9372916,67552.0,67551.0,0.003]
[1717321226081,0.8821916,67552.0,67551.0,0.003]
[1717321226299,0.6585916,67552.0,67551.0,0.003]
[1717321227939,0.6535916,67552.0,67551.0,0.003]
[1717321228513,0.2575236,67552.0,67551.0,0.29987791]
[1717321228728,0.2575236,67552.0,67551.0,0.45107791]
[1717321228932,0.20584551,67552.0,67551.0,0.45107791]
[1717321229135,0.18831927,67552.0,67551.0,0.45107791]
[1717321229337,0.179034,67552.0,67551.0,0.45107791]
[1717321229523,0.179034,67552.0,67551.0,0.50107791]
[1717321229887,0.031,67552.0,67551.0,0.58985791]
[1717321231287,0.017,67552.0,67551.0,0.58885791]
[1717321231699,0.018,67552.0,67551.0,0.77948127]
[1717321232101,0.018,67552.0,67551.0,0.74248127]
[1717321232102,0.017,67552.0,67551.0,0.74248127]
[1717321232563,0.1,67560.0,67558.0,0.19]
[1717321232786,0.1,67560.0,67559.0,0.44807791]
[1717321234228,0.104,67560.0,67559.0,0.44807791]
[1717321234842,0.105,67560.0,67559.0,0.44807791]
[1717321235697,0.104,67560.0,67559.0,0.44807791]
[1717321235900,0.104,67560.0,67559.0,0.46007791]
[1717321236105,0.101,67560.0,67559.0,0.46007791]
[1717321236705,0.102,67560.0,67559.0,0.47107791]
[1717321237530,0.002,67560.0,67559.0,0.45907791]
[1717321237913,0.102,67560.0,67559.0,0.47107791]
[1717321238134,0.102,67560.0,67559.0,0.55985791]
[1717321238780,0.002,67560.0,67559.0,0.55985791]
[1717321241386,0.002,67560.0,67559.0,0.50975791]
[1717321241560,0.002,67560.0,67559.0,0.28055791]
[1717321242230,0.150016,67560.0,67559.0,0.19177791]
[1717321242438,0.255016,67560.0,67559.0,0.19177791]
[1717321243536,0.494416,67560.0,67559.0,0.19177791]
[1717321244155,0.494416,67560.0,67559.0,0.023]
[1717321244156,0.544516,67560.0,67559.0,0.023]
[1717321244365,0.56204519,67560.0,67559.0,0.023]
[1717321245208,0.51094519,67560.0,67559.0,0.011]
[1717321245417,0.51094519,67560.0,67559.0,0.016]
[1717321245623,0.50994519,67560.0,67559.0,0.005]
[1717321245831,0.50994519,67560.0,67559.0,0.009]
[1717321245832,0.51094519,67560.0,67559.0,0.009]
[1717321246003,0.51094519,67560.0,67559.0,0.004]
[1717321246145,0.005,67559.0,67551.0,0.2901]
[1717321246353,0.148029,67555.0,67552.0,0.023]
[1717321246548,0.24803,67554.0,67552.0,0.023]
[1717321248012,0.25303,67554.0,67552.0,0.023]
[1717321248223,0.24803,67554.0,67552.0,0.023]
[1717321248817,0.25303,67554.0,67552.0,0.032]
[1717321249020,0.24803,67554.0,67552.0,0.032]
[1717321249235,0.24803,67554.0,67552.0,0.009]
[1717321249236,0.387431,67553.0,67552.0,0.009]
[1717321249448,0.85612919,67553.0,67552.0,0.017]
[1717321249695,1.15219219,67553.0,67552.0,0.017]
[1717321249900,1.25219219,67553.0,67552.0,0.017]
[1717321250138,1.25219219,67553.0,67552.0,0.009]
[1717321250636,1.28919219,67553.0,67552.0,0.003]
[1717321250839,1.28919219,67553.0,67552.0,0.006]
[1717321251050,1.30619219,67553.0,67552.0,0.006]
[1717321251499,1.28919219,67553.0,67552.0,0.003]
[1717321251722,1.38149219,67553.0,67552.0,0.006]
[1717321251963,1.34449219,67553.0,67552.0,0.003]
[1717321252146,1.36449219,67553.0,67552.0,0.003]
[1717321252365,0.84017,67552.0,67551.0,0.05]
[1717321252637,1.20210519,67552.0,67551.0,0.05]
[1717321255001,1.4018831,67552.0,67551.0,0.056]
[1717321255624,1.4388831,67552.0,67551.0,0.059]
[1717321257583,1.50306362,67552.0,67551.0,0.059]
[1717321257805,1.50306362,67552.0,67551.0,0.05738675]
[1717321258447,1.79913162,67552.0,67551.0,0.05738675]
[1717321259153,1.89913162,67552.0,67551.0,0.05738675]
[1717321260029,1.80813162,67552.0,67551.0,0.04838675]
[1717321260249,1.82513162,67552.0,67551.0,0.05138675]
[1717321260474,1.87397158,67552.0,67551.0,0.05138675]
[1717321260672,1.82513162,67552.0,67551.0,0.05138675]
[1717321261709,1.87183559,67552.0,67551.0,0.05138675]
[1717321261955,1.90783559,67552.0,67551.0,0.05138675]
[1717321263010,1.90783559,67552.0,67551.0,7.5e-07]
[1717321263217,0.253049,67545.0,67539.0,0.2334399]
[1717321263423,0.87839774,67545.0,67539.0,0.2334399]
[1717321263642,1.5347742,67545.0,67539.0,0.2334399]
[1717321263841,1.8308722,67545.0,67539.0,0.2334399]
[1717321264426,1.8668722,67545.0,67539.0,0.2334399]
[1717321264645,1.91571216,67545.0,67539.0,0.2334399]
[1717321265275,1.95171216,67545.0,67539.0,0.2334399]
[1717321265523,7.00171216,67545.0,67539.0,0.2334399]
[1717321265790,6.96571216,67545.0,67539.0,0.2334399]
[1717321266146,6.9528722,67545.0,67539.0,0.2334399]
[1717321266351,6.9168722,67545.0,67539.0,0.2334399]
[1717321266556,1.8308722,67545.0,67539.0,0.2334399]
[1717321266761,1.91571216,67545.0,67539.0,0.2334399]
[1717321266889,3.45271216,67545.0,67539.0,0.2334399]
[1717321267300,3.18271216,67545.0,67539.0,0.2334399]
[1717321267922,2.80371216,67545.0,67539.0,0.2334399]
[1717321268301,2.7548722,67545.0,67539.0,0.2334399]
[1717321268504,2.7908722,67545.0,67539.0,0.2334399]
[1717321268694,2.7548722,67545.0,67539.0,0.2334399]
[1717321269070,2.7908722,67545.0,67539.0,0.2334399]
[1717321269263,2.79055789,67545.0,67539.0,0.2334399]
[1717321269839,2.79055789,67545.0,67544.0,0.003235]
[1717321270047,1.08193564,67540.0,67539.0,0.2334399]
[1717321270247,6.81645443,67540.0,67539.0,0.2334399]
[1717321270460,6.93361686,67540.0,67539.0,0.2334399]
[1717321271155,7.03361686,67540.0,67529.0,0.09287342]
[1717321271363,7.03361686,67540.0,67522.0,6.7e-05]